[Event "Juniorallsvenskan 2019, Division 1 and 2"]
[Site "Molnlycke kulturhus, Biblioteksgatan 2, Molnlycke, Sweden"]
[Date "2019.11.22"]
[Round "1.22"]
[White "Johansson-Ohman, Linnea"]
[Black "Ostlund, Joar"]
[Result "0-1"]
[TimeControl "90 minutes + 30 seconds per move from move one"]
[WhiteFideId "1737260"]
[BlackFideId "1735020"]
[WhiteElo "1660"]
[BlackElo "1955"]

1. d4 {[%clk 01:30:53]} {[%emt 00:00:07]} Nf6 {[%clk 01:30:43]} {[%emt
00:00:17]} 2. c4 {[%clk 01:31:07]} {[%emt 00:00:16]} e6 {[%clk 01:31:06]}
{[%emt 00:00:07]} 3. Nf3 {[%clk 01:31:26]} {[%emt 00:00:11]} d5 {[%clk
01:31:16]} {[%emt 00:00:20]} 4. g3 {[%clk 01:31:10]} {[%emt 00:00:46]} dxc4
{[%clk 01:31:07]} {[%emt 00:00:39]} 5. Bg2 {[%clk 01:31:25]} {[%emt 00:00:16]}
Bb4+ {[%clk 01:31:00]} {[%emt 00:00:36]} 6. Bd2 {[%emt 00:01:16]} c5 {[%clk
01:30:34]} {[%emt 00:00:52]} 7. Bxb4 {[%clk 01:24:12]} {[%emt 00:07:02]} cxb4
{[%clk 01:30:55]} {[%emt 00:00:08]} 8. Qa4+ {[%emt 00:03:56]} Nc6 {[%emt
00:00:29]} 9. Ne5 {[%clk 01:18:40]} {[%emt 00:02:31]} O-O {[%emt 00:02:31]} 10.
Nxc6 {[%clk 01:12:26]} {[%emt 00:06:42]} bxc6 {[%clk 01:29:23]} {[%emt
00:00:09]} 11. Qxb4 {[%clk 01:11:42]} {[%emt 00:01:13]} Ba6 {[%clk 01:21:25]}
{[%emt 00:08:29]} 12. Qd2 {[%clk 01:05:49]} {[%emt 00:06:23]} Qb6 {[%clk
01:12:40]} {[%emt 00:09:15]} 13. O-O {[%clk 01:00:34]} {[%emt 00:05:45]} Rad8
{[%emt 00:02:55]} 14. Rd1 {[%clk 01:00:26]} {[%emt 00:00:36]} c5 {[%clk
01:09:39]} {[%emt 00:01:09]} 15. e3 {[%clk 00:59:47]} {[%emt 00:01:09]} cxd4
{[%clk 01:08:15]} {[%emt 00:01:53]} 16. exd4 {[%clk 00:59:46]} {[%emt
00:00:32]} Rd6 {[%clk 01:06:55]} {[%emt 00:01:49]} 17. Nc3 {[%clk 00:55:04]}
{[%emt 00:05:11]} Rfd8 {[%clk 01:05:12]} {[%emt 00:02:14]} 18. Ne2 {[%clk
00:51:08]} {[%emt 00:04:27]} e5 {[%clk 00:41:34]} {[%emt 00:24:08]} 19. d5
{[%clk 00:50:49]} {[%emt 00:00:49]} Bb7 {[%clk 00:40:18]} {[%emt 00:01:46]} 20.
Nc3 {[%clk 00:46:44]} {[%emt 00:04:35]} Qc5 {[%clk 00:21:25]} {[%emt 00:19:23]}
21. Qe2 {[%clk 00:42:26]} {[%emt 00:04:47]} Re8 {[%clk 00:11:13]} {[%emt
00:10:43]} 22. Rac1 {[%clk 00:40:07]} {[%emt 00:02:49]} e4 {[%clk 00:05:42]}
{[%emt 00:06:01]} 23. Bxe4 {[%clk 00:18:10]} {[%emt 00:22:27]} Bxd5 {[%clk
00:01:19]} {[%emt 00:04:53]} 24. Nxd5 {[%clk 00:17:29]} {[%emt 00:01:11]} Rxd5
{[%clk 00:00:43]} {[%emt 00:01:06]} 25. Rxd5 {[%clk 00:17:08]} {[%emt
00:00:51]} Qxd5 {[%clk 00:00:39]} {[%emt 00:00:34]} 26. Bxd5 {[%clk 00:16:31]}
{[%emt 00:01:07]} Rxe2 {[%clk 00:01:00]} {[%emt 00:00:09]} 27. Rxc4 {[%clk
00:10:33]} {[%emt 00:06:28]} g6 {[%clk 00:01:20]} {[%emt 00:00:10]} 28. Bf3
{[%clk 00:10:54]} {[%emt 00:00:09]} Rxb2 {[%clk 00:01:22]} {[%emt 00:00:28]} 29.
Ra4 {[%clk 00:11:21]} {[%emt 00:00:03]} Rd2 {[%clk 00:00:31]} {[%emt 00:01:21]}
30. Rxa7 {[%clk 00:11:33]} {[%emt 00:00:17]} Nd7 {[%clk 00:00:33]} {[%emt
00:00:29]} 31. Ra8+ {[%clk 00:11:07]} {[%emt 00:00:57]} Kg7 {[%clk 00:00:56]}
{[%emt 00:00:07]} 32. Rd8 {[%clk 00:10:02]} {[%emt 00:01:34]} Ne5 {[%clk
00:01:11]} {[%emt 00:00:15]} 33. Bd5 {[%clk 00:09:15]} {[%emt 00:01:16]} Kf6
{[%clk 00:00:45]} {[%emt 00:00:57]} 34. f4 {[%clk 00:07:38]} {[%emt 00:02:07]}
Nf3+ {[%clk 00:00:47]} {[%emt 00:00:28]} 35. Bxf3 {[%clk 00:07:34]} {[%emt
00:00:34]} Rxd8 {[%clk 00:01:13]} {[%emt 00:00:04]} 36. a4 {[%clk 00:07:09]}
{[%emt 00:00:55]} Rd2 {[%clk 00:01:26]} {[%emt 00:00:17]} 37. Kf1 {[%clk
00:03:47]} {[%emt 00:03:52]} Rxh2 {[%clk 00:01:27]} {[%emt 00:00:29]} 38. Bg2
{[%clk 00:04:07]} {[%emt 00:00:09]} Rh5 {[%clk 00:01:44]} {[%emt 00:00:12]} 39.
Ke2 {[%clk 00:04:09]} {[%emt 00:00:30]} Ra5 {[%clk 00:01:37]} {[%emt 00:00:36]}
40. Bc6 {[%clk 00:04:34]} {[%emt 00:00:05]} Rc5 {[%clk 00:01:51]} {[%emt
00:00:16]} 41. Bb5 {[%clk 00:04:40]} {[%emt 00:00:25]} Rc3 {[%clk 00:01:43]}
{[%emt 00:00:38]} 42. Kf2 {[%clk 00:02:28]} {[%emt 00:02:42]} Ra3 {[%clk
00:01:54]} {[%emt 00:00:19]} 43. Bc6 {[%clk 00:01:08]} {[%emt 00:01:50]} Kf5
{[%clk 00:02:12]} {[%emt 00:00:13]} 44. Bd7+ {[%clk 00:01:33]} {[%emt
00:00:05]} Ke4 {[%clk 00:02:21]} {[%emt 00:00:20]} 45. Bb5 {[%clk 00:00:51]}
{[%emt 00:01:12]} Ra2+ {[%clk 00:02:40]} {[%emt 00:00:11]} 46. Be2 {[%clk
00:00:47]} {[%emt 00:00:35]} f6 {[%clk 00:02:55]} {[%emt 00:00:14]} 47. a5
{[%clk 00:01:09]} {[%emt 00:00:08]} Rxa5 {[%clk 00:03:15]} {[%emt 00:00:10]} 48.
Bf3+ {[%clk 00:01:27]} {[%emt 00:00:12]} Kd3 {[%clk 00:02:54]} {[%emt
00:00:50]} 49. Kg2 {[%clk 00:00:58]} {[%emt 00:01:01]} Ke3 {[%clk 00:03:17]}
{[%emt 00:00:07]} 50. Bc6 {[%clk 00:01:07]} {[%emt 00:00:20]} Ra2+ {[%clk
00:03:26]} {[%emt 00:00:21]} 51. Kh3 {[%clk 00:01:33]} {[%emt 00:00:04]} Kf2
{[%clk 00:03:19]} {[%emt 00:00:37]} 52. Kh4 {[%clk 00:01:23]} {[%emt 00:00:40]}
Rc2 {[%clk 00:02:04]} {[%emt 00:01:44]} 53. Bd5 {[%clk 00:01:27]} {[%emt
00:00:26]} Rc5 {[%clk 00:02:23]} {[%emt 00:00:11]} 54. Be6 {[%clk 00:00:41]}
{[%emt 00:01:17]} Rh5+ {[%clk 00:02:40]} {[%emt 00:00:12]} 55. Kg4 {[%clk
00:01:03]} {[%emt 00:00:09]} f5+ {[%clk 00:03:00]} {[%emt 00:00:10]} 56. Bxf5
{[%clk 00:01:29]} {[%emt 00:00:05]} Rxf5 {[%clk 00:03:21]} {[%emt 00:00:08]} 57.
Kh4 {[%clk 00:01:52]} {[%emt 00:00:07]} Kf3 {[%clk 00:03:28]} {[%emt 00:00:23]}
58. g4 {[%clk 00:02:10]} {[%emt 00:00:12]} Rxf4 {[%clk 00:03:47]} {[%emt
00:00:10]} 0-1

[Event "Juniorallsvenskan 2019, Division 1 and 2"]
[Site "Molnlycke kulturhus, Biblioteksgatan 2, Molnlycke, Sweden"]
[Date "2019.11.23"]
[Round "2.1"]
[White "Petersson, Baldur Teodor"]
[Black "Troberg Eskola, Love"]
[Result "1-0"]
[TimeControl "90 minutes + 30 seconds per move from move one"]
[WhiteTitle "CM"]
[WhiteFideId "2309157"]
[BlackFideId "1724185"]
[WhiteElo "2216"]
[BlackElo "2096"]

1. e4 {[%clk 01:30:53]} {[%emt 00:00:06]} e6 {[%clk 01:30:55]} {[%emt
00:00:06]} 2. d3 {[%clk 01:29:01]} {[%emt 00:02:21]} d5 {[%clk 01:31:21]}
{[%emt 00:00:05]} 3. Nd2 {[%clk 01:29:27]} {[%emt 00:00:04]} Nf6 {[%clk
01:31:46]} {[%emt 00:00:05]} 4. Ngf3 {[%clk 01:29:51]} {[%emt 00:00:06]} Nc6
{[%clk 01:32:10]} {[%emt 00:00:07]} 5. c3 {[%clk 01:30:13]} {[%emt 00:00:07]}
a5 {[%clk 01:28:56]} {[%emt 00:03:43]} 6. Be2 {[%clk 01:28:33]} {[%emt
00:02:10]} dxe4 {[%clk 01:27:40]} {[%emt 00:01:47]} 7. dxe4 {[%clk 01:28:43]}
{[%emt 00:00:20]} Bc5 {[%clk 01:27:55]} {[%emt 00:00:15]} 8. e5 {[%clk
01:24:02]} {[%emt 00:05:11]} Ng4 {[%clk 01:19:11]} {[%emt 00:09:13]} 9. Ne4
{[%clk 01:24:03]} {[%emt 00:00:30]} Qxd1+ {[%clk 01:19:28]} {[%emt 00:00:13]}
10. Bxd1 {[%clk 01:24:20]} {[%emt 00:00:12]} Ba7 {[%clk 01:10:36]} {[%emt
00:09:23]} 11. Bf4 {[%clk 01:22:53]} {[%emt 00:01:56]} h5 {[%clk 01:05:51]}
{[%emt 00:05:16]} 12. h3 {[%clk 01:19:09]} {[%emt 00:04:14]} Nh6 {[%clk
01:06:14]} {[%emt 00:00:07]} 13. Bc2 {[%clk 01:12:46]} {[%emt 00:06:53]} Ne7
{[%clk 00:53:43]} {[%emt 00:13:01]} 14. O-O-O {[%clk 01:09:31]} {[%emt
00:03:45]} Bd7 {[%clk 00:51:34]} {[%emt 00:02:39]} 15. Bg5 {[%clk 01:07:27]}
{[%emt 00:02:34]} Bc6 {[%clk 00:45:09]} {[%emt 00:06:56]} 16. c4 {[%clk
01:01:08]} {[%emt 00:06:49]} Rb8 {[%clk 00:39:59]} {[%emt 00:05:39]} 17. Rd2
{[%clk 00:55:19]} {[%emt 00:06:19]} b5 {[%clk 00:36:52]} {[%emt 00:03:37]} 18.
c5 {[%clk 00:44:16]} {[%emt 00:11:33]} Nhf5 {[%clk 00:27:15]} {[%emt 00:10:07]}
19. Rhd1 {[%clk 00:40:06]} {[%emt 00:04:40]} b4 {[%clk 00:23:48]} {[%emt
00:03:57]} 20. g4 {[%clk 00:38:55]} {[%emt 00:01:41]} Nh6 {[%clk 00:23:25]}
{[%emt 00:00:53]} 21. Nd4 {[%clk 00:38:26]} {[%emt 00:00:59]} Bd5 {[%clk
00:18:34]} {[%emt 00:05:21]} 22. Ba4+ {[%clk 00:36:23]} {[%emt 00:02:33]} Kf8
{[%clk 00:18:49]} {[%emt 00:00:14]} 23. Bxe7+ {[%clk 00:36:27]} {[%emt
00:00:26]} Kxe7 {[%clk 00:19:13]} {[%emt 00:00:06]} 24. Nc6+ {[%clk 00:36:51]}
{[%emt 00:00:05]} Bxc6 {[%clk 00:18:24]} {[%emt 00:01:20]} 25. Bxc6 {[%clk
00:37:16]} {[%emt 00:00:05]} Rhd8 {[%clk 00:16:42]} {[%emt 00:02:12]} 26. Rd7+
{[%clk 00:37:32]} {[%emt 00:00:13]} Rxd7 {[%clk 00:17:01]} {[%emt 00:00:11]} 27.
Rxd7+ {[%clk 00:37:56]} {[%emt 00:00:07]} Kf8 {[%clk 00:17:20]} {[%emt
00:00:11]} 28. Rxc7 {[%clk 00:38:16]} {[%emt 00:00:10]} hxg4 {[%clk 00:17:10]}
{[%emt 00:00:40]} 29. hxg4 {[%clk 00:38:28]} {[%emt 00:00:18]} Nxg4 {[%clk
00:17:02]} {[%emt 00:00:37]} 30. Rxa7 {[%clk 00:38:19]} {[%emt 00:00:40]} Nxe5
{[%clk 00:17:22]} {[%emt 00:00:10]} 31. Ba4 {[%clk 00:38:39]} {[%emt 00:00:09]}
f5 {[%clk 00:17:13]} {[%emt 00:00:39]} 32. Ng5 {[%clk 00:37:37]} {[%emt
00:01:31]} Nd3+ {[%clk 00:17:12]} {[%emt 00:00:33]} 33. Kb1 {[%clk 00:37:15]}
{[%emt 00:00:52]} Nxc5 {[%clk 00:17:31]} {[%emt 00:00:11]} 34. Rxa5 {[%clk
00:37:37]} {[%emt 00:00:08]} Nd3 {[%clk 00:13:33]} {[%emt 00:04:27]} 35. Bc2
{[%clk 00:36:56]} {[%emt 00:01:11]} Nxf2 {[%clk 00:11:47]} {[%emt 00:02:16]} 36.
Nxe6+ {[%clk 00:36:54]} {[%emt 00:00:33]} Ke7 {[%clk 00:10:40]} {[%emt
00:01:37]} 37. Nxg7 {[%clk 00:36:23]} {[%emt 00:01:01]} Rg8 {[%clk 00:10:49]}
{[%emt 00:00:21]} 38. Nxf5+ {[%clk 00:36:40]} {[%emt 00:00:12]} Kf6 {[%clk
00:11:08]} {[%emt 00:00:11]} 39. a4 {[%clk 00:35:54]} {[%emt 00:01:16]} bxa3
{[%clk 00:10:14]} {[%emt 00:01:25]} 40. Rxa3 {[%clk 00:36:23]} {[%emt
00:00:01]} Ke5 {[%clk 00:09:47]} {[%emt 00:00:57]} 41. Rf3 {[%clk 00:36:22]}
{[%emt 00:00:29]} Rg1+ {[%clk 00:09:24]} {[%emt 00:00:54]} 42. Ka2 {[%clk
00:36:45]} {[%emt 00:00:07]} Ng4 {[%clk 00:09:29]} {[%emt 00:00:25]} 43. b4
{[%clk 00:36:49]} {[%emt 00:00:27]} Nf6 {[%clk 00:07:35]} {[%emt 00:02:24]} 44.
Kb3 {[%clk 00:36:47]} {[%emt 00:00:31]} Nd5 {[%clk 00:07:15]} {[%emt 00:00:51]}
45. Ne3 {[%clk 00:37:02]} {[%emt 00:00:14]} Nc7 {[%clk 00:06:37]} {[%emt
00:01:08]} 46. Nc4+ {[%clk 00:37:19]} {[%emt 00:00:13]} Kd5 {[%clk 00:06:11]}
{[%emt 00:00:56]} 47. Rd3+ {[%clk 00:37:10]} {[%emt 00:00:39]} Kc6 {[%clk
00:05:57]} {[%emt 00:00:44]} 48. Rd6+ {[%clk 00:37:33]} {[%emt 00:00:07]} Kb7
{[%clk 00:06:16]} {[%emt 00:00:12]} 49. Be4+ {[%clk 00:37:42]} {[%emt
00:00:21]} Ka7 {[%clk 00:04:17]} {[%emt 00:02:29]} 50. Rd7 {[%clk 00:37:59]}
{[%emt 00:00:11]} Kb8 {[%clk 00:04:09]} {[%emt 00:00:39]} 51. Rd8+ {[%clk
00:38:12]} {[%emt 00:00:17]} Ka7 {[%clk 00:04:33]} {[%emt 00:00:06]} 52. b5
{[%clk 00:37:54]} {[%emt 00:00:48]} Rg3+ {[%clk 00:03:00]} {[%emt 00:02:04]} 53.
Ka4 {[%clk 00:38:05]} {[%emt 00:00:18]} Rg5 {[%clk 00:00:54]} {[%emt 00:02:36]}
54. b6+ {[%clk 00:38:11]} {[%emt 00:00:25]} Ka6 {[%clk 00:01:16]} {[%emt
00:00:08]} 55. bxc7 {[%clk 00:38:15]} {[%emt 00:00:25]} Rc5 {[%clk 00:00:59]}
{[%emt 00:00:48]} 56. Ra8# {[%emt 00:00:10]} 1-0

[Event "Juniorallsvenskan 2019, Division 1 and 2"]
[Site "Molnlycke kulturhus, Biblioteksgatan 2, Molnlycke, Sweden"]
[Date "2019.11.23"]
[Round "2.2"]
[White "Torngren, Gustav"]
[Black "Pantzar, Milton"]
[Result "0-1"]
[TimeControl "90 minutes + 30 seconds per move from move one"]
[WhiteTitle "CM"]
[BlackTitle "FM"]
[WhiteFideId "1728970"]
[BlackFideId "1721003"]
[WhiteElo "2247"]
[BlackElo "2406"]

1. e4 {[%clk 01:30:49]} {[%emt 00:00:02]} e5 {[%clk 01:30:51]} {[%emt
00:00:18]} 2. Nf3 {[%clk 01:31:07]} {[%emt 00:00:12]} Nc6 {[%clk 01:31:09]}
{[%emt 00:00:11]} 3. Bb5 {[%clk 01:31:30]} {[%emt 00:00:08]} a6 {[%clk
01:31:33]} {[%emt 00:00:05]} 4. Ba4 {[%clk 01:31:56]} {[%emt 00:00:04]} Nf6
{[%clk 01:31:50]} {[%emt 00:00:13]} 5. O-O {[%clk 01:32:17]} {[%emt 00:00:09]}
Be7 {[%clk 01:32:01]} {[%emt 00:00:19]} 6. Re1 {[%clk 01:32:21]} {[%emt
00:00:26]} b5 {[%clk 01:32:25]} {[%emt 00:00:06]} 7. Bb3 {[%clk 01:32:47]}
{[%emt 00:00:05]} d6 {[%clk 01:32:50]} {[%emt 00:00:04]} 8. c3 {[%clk
01:33:01]} {[%emt 00:00:16]} O-O {[%clk 01:33:12]} {[%emt 00:00:08]} 9. h3
{[%clk 01:32:51]} {[%emt 00:00:40]} Na5 {[%clk 01:33:30]} {[%emt 00:00:11]} 10.
Bc2 {[%clk 01:33:11]} {[%emt 00:00:09]} c5 {[%clk 01:33:55]} {[%emt 00:00:05]}
11. d4 {[%clk 01:33:34]} {[%emt 00:00:08]} Qc7 {[%clk 01:34:20]} {[%emt
00:00:05]} 12. d5 {[%clk 01:33:56]} {[%emt 00:00:07]} Bd7 {[%clk 01:34:15]}
{[%emt 00:00:36]} 13. b3 {[%clk 01:33:56]} {[%emt 00:00:31]} g6 {[%clk
01:34:28]} {[%emt 00:00:17]} 14. Nbd2 {[%clk 01:33:47]} {[%emt 00:00:38]} Nh5
{[%clk 01:34:14]} {[%emt 00:00:44]} 15. Nf1 {[%clk 01:31:21]} {[%emt 00:02:56]}
Rfb8 {[%clk 01:30:22]} {[%emt 00:04:22]} 16. Be3 {[%clk 01:19:50]} {[%emt
00:12:01]} c4 {[%clk 01:26:44]} {[%emt 00:04:09]} 17. b4 {[%clk 01:19:49]}
{[%emt 00:00:32]} Nb7 {[%clk 01:27:09]} {[%emt 00:00:04]} 18. Ng3 {[%clk
01:06:36]} {[%emt 00:13:43]} Nxg3 {[%clk 01:23:43]} {[%emt 00:03:56]} 19. fxg3
{[%clk 01:06:56]} {[%emt 00:00:10]} a5 {[%clk 01:23:52]} {[%emt 00:00:22]} 20.
a3 {[%clk 01:06:45]} {[%emt 00:00:41]} Ra6 {[%clk 01:19:54]} {[%emt 00:04:27]}
21. Rc1 {[%clk 01:01:16]} {[%emt 00:05:59]} axb4 {[%clk 01:09:38]} {[%emt
00:10:46]} 22. axb4 {[%clk 01:01:42]} {[%emt 00:00:03]} Ra3 {[%clk 01:08:31]}
{[%emt 00:01:37]} 23. Bb1 {[%clk 00:51:33]} {[%emt 00:10:40]} f6 {[%clk
01:04:54]} {[%emt 00:04:08]} 24. g4 {[%clk 00:49:59]} {[%emt 00:02:04]} Nd8
{[%clk 01:01:43]} {[%emt 00:03:41]} 25. Rf1 {[%clk 00:47:40]} {[%emt 00:02:49]}
Nf7 {[%clk 01:01:05]} {[%emt 00:01:07]} 26. Qd2 {[%clk 00:43:02]} {[%emt
00:05:08]} Qd8 {[%clk 00:52:16]} {[%emt 00:09:19]} 27. Rf2 {[%clk 00:38:15]}
{[%emt 00:05:17]} Kg7 {[%clk 00:42:56]} {[%emt 00:09:50]} 28. Rcf1 {[%clk
00:35:44]} {[%emt 00:03:01]} h6 {[%clk 00:41:22]} {[%emt 00:02:04]} 29. Kh2
{[%clk 00:29:38]} {[%emt 00:06:36]} Ra1 {[%clk 00:36:40]} {[%emt 00:05:12]} 30.
Ng1 {[%clk 00:24:35]} {[%emt 00:05:33]} Rba8 {[%clk 00:21:27]} {[%emt
00:15:44]} 31. Ne2 {[%clk 00:24:27]} {[%emt 00:00:38]} R8a3 {[%clk 00:20:15]}
{[%emt 00:01:42]} 32. Qb2 {[%clk 00:22:38]} {[%emt 00:02:19]} Qa8 {[%clk
00:17:44]} {[%emt 00:03:01]} 33. Nc1 {[%clk 00:20:40]} {[%emt 00:02:28]} Rxb1
{[%clk 00:03:09]} {[%emt 00:15:05]} 34. Qxb1 {[%clk 00:21:07]} {[%emt
00:00:02]} Rxc3 {[%clk 00:03:25]} {[%emt 00:00:15]} 35. Bb6 {[%clk 00:20:17]}
{[%emt 00:01:19]} Ng5 {[%clk 00:02:43]} {[%emt 00:01:12]} 36. Ra2 {[%clk
00:16:07]} {[%emt 00:04:40]} Ra3 {[%clk 00:03:07]} {[%emt 00:00:06]} 37. Ba5
{[%clk 00:16:16]} {[%emt 00:00:21]} Rxa2 {[%clk 00:02:25]} {[%emt 00:01:12]} 38.
Nxa2 {[%clk 00:16:42]} {[%emt 00:00:04]} Qa7 {[%clk 00:01:43]} {[%emt
00:01:13]} 39. Nc3 {[%clk 00:17:04]} {[%emt 00:00:08]} Qd4 {[%clk 00:01:10]}
{[%emt 00:01:03]} 40. Qc2 {[%clk 00:17:30]} {[%emt 00:00:04]} Qe3 {[%clk
00:00:46]} {[%emt 00:00:54]} 41. Rf2 {[%clk 00:14:57]} {[%emt 00:03:03]} h5
{[%clk 00:00:53]} {[%emt 00:00:23]} 42. gxh5 {[%clk 00:15:12]} {[%emt
00:00:15]} f5 {[%clk 00:00:36]} {[%emt 00:00:47]} 43. Qd2 {[%clk 00:15:21]}
{[%emt 00:00:21]} Qxd2 {[%clk 00:00:42]} {[%emt 00:00:25]} 44. Rxd2 {[%clk
00:15:50]} {[%emt 00:00:01]} Nxe4 {[%clk 00:00:59]} {[%emt 00:00:12]} 45. Nxe4
{[%clk 00:15:48]} {[%emt 00:00:32]} fxe4 {[%clk 00:01:28]} 46. hxg6 {[%clk
00:15:06]} {[%emt 00:01:12]} Bf5 {[%clk 00:00:57]} {[%emt 00:01:01]} 47. Bb6
{[%clk 00:14:36]} {[%emt 00:01:00]} Bg5 {[%clk 00:01:00]} {[%emt 00:00:28]} 48.
Re2 {[%clk 00:14:47]} {[%emt 00:00:19]} Bxg6 {[%clk 00:01:21]} {[%emt
00:00:09]} 49. Be3 {[%clk 00:14:50]} {[%emt 00:00:26]} Bxe3 {[%clk 00:01:12]}
{[%emt 00:00:40]} 50. Rxe3 {[%clk 00:15:19]} Bf7 {[%clk 00:01:36]} {[%emt
00:00:06]} 51. Rxe4 {[%clk 00:15:27]} {[%emt 00:00:22]} Bxd5 {[%clk 00:02:02]}
{[%emt 00:00:04]} 52. Re1 {[%clk 00:14:07]} {[%emt 00:01:49]} Kf6 {[%clk
00:02:12]} {[%emt 00:00:20]} 53. g4 {[%clk 00:14:26]} {[%emt 00:00:11]} e4
{[%clk 00:00:55]} {[%emt 00:01:48]} 54. Kg3 {[%clk 00:13:47]} {[%emt 00:01:10]}
Ke5 {[%clk 00:01:21]} {[%emt 00:00:03]} 55. h4 {[%clk 00:13:22]} {[%emt
00:00:55]} Bg8 {[%clk 00:00:40]} {[%emt 00:01:11]} 56. h5 {[%clk 00:10:44]}
{[%emt 00:03:08]} d5 {[%clk 00:00:34]} {[%emt 00:00:36]} 57. Rf1 {[%clk
00:11:00]} {[%emt 00:00:14]} d4 {[%clk 00:00:46]} {[%emt 00:00:18]} 58. Rf5+
{[%clk 00:10:59]} {[%emt 00:00:30]} Ke6 {[%clk 00:00:48]} {[%emt 00:00:28]} 59.
Rxb5 {[%clk 00:11:04]} {[%emt 00:00:25]} c3 {[%clk 00:00:44]} {[%emt 00:00:35]}
60. Rc5 {[%clk 00:10:46]} {[%emt 00:00:48]} Kd6 {[%clk 00:00:37]} {[%emt
00:00:37]} 61. g5 {[%clk 00:09:30]} {[%emt 00:01:46]} d3 {[%clk 00:00:50]}
{[%emt 00:00:17]} 62. Kf2 {[%clk 00:09:52]} {[%emt 00:00:08]} d2 {[%clk
00:01:13]} {[%emt 00:00:07]} 63. Ke2 {[%clk 00:10:12]} {[%emt 00:00:10]} Bb3
{[%clk 00:01:38]} {[%emt 00:00:05]} 0-1